lending/lending_fUSD_20260124
["ID","MTS","AMOUNT","RATE_DAILY","PERIOD"]
[403167233,1769235032140,-274.2,0.00013598,2]
[403167234,1769235032151,-677.36324147,0.00013598,2]
[403167235,1769235032161,-304.24350998,0.00013598,2]
[403167236,1769235032172,-1210.11489401,0.00013598,2]
[403167237,1769235032186,-23000.70684007,0.00013598,2]
[403167238,1769235032243,-1828.96,0.00013598,2]
[403167239,1769235032254,-4742.63241699,0.00013598,2]
[403167240,1769235032266,-289.88510599,0.00013598,2]
[403167241,1769235032276,-609019.36437105,0.00013598,2]
[403167242,1769235032288,-36846.00951022,0.00013598,2]
[403167243,1769235032298,-50609.12020764,0.00013598,2]
[403167244,1769235032309,-13344.46549878,0.00013598,2]
[403167246,1769235038158,-386.1649995,0.00013598,2]
[403167247,1769235038170,-1103.16022683,0.00013598,2]
[403167248,1769235038181,-2047.57159741,0.00013598,2]
[403167249,1769235038194,-827.55333664,0.00013598,2]
[403167250,1769235038206,-148128.2571599,0.00013598,2]
[403167251,1769235038215,-322.6107,0.00013654,2]
[403167252,1769235038224,-177.87389775,0.00013654,2]
[403167253,1769235038234,-151.0,0.00013654,2]
[403167254,1769235038243,-500.0,0.00013654,2]
[403167255,1769235038253,-500.0,0.00013654,2]
[403167256,1769235038263,-500.0,0.00013654,2]
[403167257,1769235038272,-500.0,0.00013654,2]
[403167258,1769235038281,-500.0,0.00013654,2]
[403167259,1769235038291,-174.61919141,0.00013654,2]
[403167260,1769235038299,-500.0,0.00013654,2]
[403167261,1769235038309,-500.0,0.00013654,2]
[403167262,1769235038318,-500.0,0.00013654,2]
[403167263,1769235038328,-500.0,0.00013654,2]
[403167264,1769235038337,-500.0,0.00013654,2]
[403167265,1769235038347,-500.0,0.00013654,2]
[403167266,1769235038356,-500.0,0.00013654,2]
[403167267,1769235038366,-500.0,0.00013654,2]
[403167268,1769235038378,-500.0,0.00013654,2]
[403167269,1769235038388,-500.0,0.00013654,2]
[403167270,1769235038398,-500.0,0.00013654,2]
[403167271,1769235038407,-500.0,0.00013654,2]
[403167272,1769235038417,-414.69152772,0.00013654,2]
[403167329,1769235038966,-85.30847228,0.00013654,2]
[403167331,1769235038975,-589.05491571,0.00013654,2]
[403167334,1769235038988,-116.83852642,0.00013654,2]
[403167336,1769235039000,-383.16147358,0.00013654,2]
[403167338,1769235039009,-250.0,0.00013654,2]
[403167340,1769235039019,-250.0,0.00013654,2]
[403167342,1769235039030,-250.0,0.00013654,2]
[403167344,1769235039040,-250.0,0.00013654,2]
[403167346,1769235039050,-140.26612899,0.00013654,2]
[403167350,1769235039079,-109.73387101,0.00013654,2]
[403167352,1769235039089,-526.58440317,0.00013654,2]
[403167416,1769235040242,-194.54325218,0.00013654,2]
[403167417,1769235040251,-206.33830667,0.00013654,2]
[403167418,1769235040293,-43.66169333,0.00013654,2]
[403167419,1769235040302,-250.0,0.00013654,2]
[403167420,1769235040311,-250.0,0.00013654,2]
[403167421,1769235040321,-264.91023601,0.00013654,2]
[403167422,1769235040330,-250.0,0.00013654,2]
[403167423,1769235040339,-250.0,0.00013654,2]
[403167424,1769235040348,-250.0,0.00013654,2]
[403167425,1769235040361,-111.11197801,0.00013654,2]
[403167426,1769235040372,-164.58372378,0.00013654,2]
[403167427,1769235040381,-150.73627623,0.00013654,2]
[403167428,1769235040436,-99.26372377,0.00013654,2]
[403167429,1769235040446,-790.95425886,0.00013654,2]
[403167430,1769235040459,-63.30465594,0.00013654,2]
[403167431,1769235040469,-250.0,0.00013654,2]
[403167432,1769235040480,-250.0,0.00013654,2]
[403167433,1769235040490,-250.0,0.00013654,2]
[403167434,1769235040500,-30.10515559,0.00013654,2]
[403167435,1769235040512,-2437.89484441,0.00013654,2]
[403167436,1769235040521,-250.0,0.00013654,2]
[403167437,1769235040530,-258.63418343,0.00013654,2]
[403167438,1769235040541,-250.0,0.00013654,2]
[403167439,1769235040550,-250.0,0.00013654,2]
[403167440,1769235040559,-250.0,0.00013654,2]
[403167441,1769235040568,-274.29477852,0.00013654,2]
[403167442,1769235040578,-250.0,0.00013654,2]
[403167443,1769235040587,-250.0,0.00013654,2]
[403167444,1769235040596,-250.0,0.00013654,2]
[403167445,1769235040606,-250.0,0.00013654,2]
[403167446,1769235040616,-250.0,0.00013654,2]
[403167447,1769235040625,-250.0,0.00013654,2]
[403167448,1769235040634,-500.0,0.00013654,2]
[403167449,1769235040644,-250.0,0.00013654,2]
[403167450,1769235040653,-500.0,0.00013654,2]
[403167451,1769235040662,-250.0,0.00013654,2]
[403167452,1769235040672,-500.0,0.00013654,2]
[403167453,1769235040681,-250.0,0.00013654,2]
[403167454,1769235040690,-250.0,0.00013654,2]
[403167455,1769235040699,-500.0,0.00013654,2]
[403167456,1769235040708,-263.73278243,0.00013654,2]
[403167457,1769235040717,-500.0,0.00013654,2]
[403167458,1769235040726,-500.0,0.00013654,2]
[403167459,1769235040737,-500.0,0.00013654,2]
[403167460,1769235040746,-500.0,0.00013654,2]
[403167461,1769235040755,-500.0,0.00013654,2]
[403167462,1769235040763,-500.0,0.00013654,2]
[403167463,1769235040773,-500.0,0.00013654,2]
[403167464,1769235040782,-500.0,0.00013654,2]
[403167465,1769235040798,-500.0,0.00013654,2]
[403167466,1769235040812,-500.0,0.00013654,2]
[403167467,1769235040822,-500.0,0.00013654,2]
[403167468,1769235040831,-151.0,0.00013654,2]
[403167469,1769235040840,-500.0,0.00013654,2]
[403167470,1769235040849,-500.0,0.00013654,2]
[403167471,1769235040857,-151.0,0.00013654,2]
[403167472,1769235040867,-151.0,0.00013654,2]
[403167473,1769235040876,-500.0,0.00013654,2]
[403167474,1769235040885,-151.0,0.00013654,2]
[403167475,1769235040894,-500.0,0.00013654,2]
[403167476,1769235040903,-151.0,0.00013654,2]
[403167477,1769235040912,-500.0,0.00013654,2]
[403167478,1769235040922,-151.0,0.00013654,2]
[403167479,1769235040931,-500.0,0.00013654,2]
[403167480,1769235040940,-151.0,0.00013654,2]
[403167481,1769235040949,-555.87535739,0.00013654,2]
[403167482,1769235040958,-151.0,0.00013654,2]
[403167483,1769235040966,-151.0,0.00013654,2]
[403167484,1769235041276,-151.0,0.00013654,2]
[403167485,1769235041287,-151.0,0.00013654,2]
[403167486,1769235041297,-250.0,0.00013654,2]
[403167487,1769235041307,-250.0,0.00013654,2]
[403167488,1769235041318,-169.10805382,0.00013654,2]
[403167489,1769235041808,-1.7e-07,0.00013654,2]
[403167490,1769235041831,-80.89194601,0.00013654,2]
[403167491,1769235041844,-250.0,0.00013654,2]
[403167492,1769235041854,-250.0,0.00013654,2]
[403167493,1769235041863,-250.0,0.00013654,2]
[403167494,1769235041873,-68.02305399,0.00013654,2]
[403167495,1769235041987,-181.97694601,0.00013654,2]
[403167496,1769235041998,-213.94617206,0.00013654,2]
[403167497,1769235042014,-36.05382794,0.00013654,2]
[403167498,1769235042024,-250.0,0.00013654,2]
[403167499,1769235042037,-250.0,0.00013654,2]
[403167500,1769235042050,-250.0,0.00013654,2]
[403167501,1769235042060,-250.0,0.00013654,2]
[403167502,1769235042071,-250.0,0.00013654,2]
[403167503,1769235042082,-250.0,0.00013654,2]
[403167504,1769235042092,-193.94607206,0.00013654,2]
[403167509,1769235046215,-56.05392794,0.00013654,2]
[403167510,1769235046225,-264.90142985,0.00013654,2]
[403167511,1769235046235,-250.0,0.00013654,2]
[403167512,1769235046246,-250.0,0.00013654,2]
[403167513,1769235046256,-250.0,0.00013654,2]
[403167514,1769235046266,-250.0,0.00013654,2]
[403167515,1769235046275,-97.44464221,0.00013654,2]
[403167516,1769235050177,2646.3855,0.00013498,2]
[403167517,1769235060293,2605.5288846,0.00013607,2]
[403167518,1769235090931,5533.0,0.000155,3]
[403167519,1769235117102,150.0,0.00013597,2]
[403167520,1769235120259,1000.0,0.00012839,2]
[403167521,1769235122062,4419.4617344,0.000155,3]
[403167522,1769235122309,5533.0,0.000155,3]
[403167523,1769235127712,150.0,0.00013597,2]
[403167524,1769235152365,150.0,0.0001348,2]
[403167525,1769235152471,150.0,0.0001348,2]
[403167526,1769235152514,150.0,0.00013535,2]
[403167527,1769235152657,150.0,0.00013535,2]
[403167528,1769235152705,206.79340538,0.0001359,2]
[403167529,1769235152805,290.43172389,0.0001359,2]
[403167530,1769235153668,5533.0,0.000155,3]
[403167531,1769235154166,150.0,0.0001348,2]
[403167532,1769235154287,150.0,0.0001348,2]
[403167533,1769235154343,150.0,0.00013535,2]
[403167534,1769235154441,150.0,0.0001348,2]
[403167535,1769235154484,203.31351599,0.0001359,2]
[403167536,1769235154735,150.0,0.0001348,2]
[403167537,1769235154917,150.0,0.00013535,2]
[403167538,1769235155026,200.0,0.0001359,2]
[403167539,1769235155521,150.0,0.0001348,2]
[403167540,1769235155680,150.0,0.00013535,2]
[403167541,1769235155873,209.61706048,0.0001359,2]
[403167542,1769235157145,150.0,0.0001348,2]
[403167543,1769235157792,150.0,0.00013535,2]
[403167544,1769235157841,200.0,0.0001359,2]
[403167545,1769235172841,37.93990966,0.00013498,2]
[403167546,1769235172867,10000.01,0.00013498,2]
[403167547,1769235172893,10000.01,0.00013498,2]
[403167548,1769235172918,10000.01,0.00013498,2]
[403167549,1769235172942,10000.01,0.00013498,2]
[403167550,1769235172967,10000.01,0.00013498,2]
[403167551,1769235172992,10000.01,0.00013498,2]
[403167552,1769235173015,10000.01,0.00013498,2]
[403167553,1769235173040,10000.01,0.00013498,2]
[403167554,1769235173065,10000.01,0.00013498,2]
[403167555,1769235181254,300.0,0.00013497,2]
[403167556,1769235185613,5533.0,0.000154,3]
[403167557,1769235187526,233.976907,7.945e-05,2]
[403167558,1769235199297,1778.62426586,0.0001,2]
[403167559,1769235211103,-880.26749735,0.00013498,2]
[403167560,1769235213246,-297.20141665,0.00013498,2]
[403167561,1769235215371,-230.5690254,0.00013498,2]
[403167562,1769235217301,5533.0,0.000154,3]
[403167563,1769235218756,1700.0,0.00012,3]
[403167564,1769235221502,652.698843,0.0001343,2]
[403167565,1769235234604,170.72639948,0.00013445,2]
[403167566,1769235241263,300.0,0.00013497,2]
[403167567,1769235249142,5533.0,0.000153,3]
[403167568,1769235272808,500.0,0.00013497,2]
[403167569,1769235272843,228.29515042,0.00013497,2]
[403167570,1769235272911,311.22343774,0.00013497,2]
[403167571,1769235272977,492.46254755,0.00013497,2]
[403167572,1769235273050,260.49320475,0.00013497,2]
[403167573,1769235280467,5533.0,0.000153,3]
[403167574,1769235283967,4771.5092442,0.00013445,2]
[403167575,1769235283997,2972.10095172,0.00013445,2]
[403167576,1769235301261,1200.0,0.00013497,2]
[403167577,1769235302297,150.0,0.00013497,2]
[403167578,1769235311931,5533.0,0.000154,5]
[403167579,1769235312609,5533.0,0.000152,3]
[403167580,1769235313226,151.0,0.00013495,2]
[403167581,1769235317188,200.0,0.00012779,2]
[403167582,1769235343947,4476.0,0.000154,5]
[403167583,1769235362787,168.2,0.000226,120]
[403167584,1769235364855,170.72639947,0.00013445,2]
[403167585,1769235391824,-313.99893781,0.00013498,2]
[403167586,1769235393458,-247.856643,0.00013498,2]
[403167587,1769235396734,-274.61431748,0.00013498,2]
[403167588,1769235397999,165.34958219,0.0001348,2]
[403167589,1769235398291,157.52757013,0.0001348,2]
[403167590,1769235398470,150.0,0.0001348,2]
[403167591,1769235398612,150.0,0.0001348,2]
[403167592,1769235400834,-194.58091449,0.00013498,2]
[403167593,1769235429579,206.58,0.00012783,2]
[403167594,1769235443705,500.0,0.000176,30]
[403167595,1769235451084,-190.65285717,0.00013498,2]
[403167596,1769235453704,-451.07962067,0.00013498,2]
[403167597,1769235455224,-313.32888976,0.00013498,2]
[403167598,1769235457981,-197.09046748,0.00013498,2]
[403167599,1769235461551,-321.70298352,0.00013498,2]
[403167600,1769235465719,-345.94478581,0.00013498,2]
[403167603,1769235482277,150.0,0.00013497,2]
[403167604,1769235484404,1819.799604,0.0001343,2]
[403167605,1769235488107,192.2116211,0.00013445,2]
[403167606,1769235496114,-378.00494286,0.00013498,2]
[403167607,1769235500035,-285.51971993,0.00013498,2]
[403167608,1769235502434,-368.44161145,0.00013498,2]
[403167609,1769235505770,-354.73942231,0.00013498,2]
[403167610,1769235507814,-180.38574137,0.00013498,2]
[403167611,1769235512065,-185.0,0.00013498,2]
[403167612,1769235514703,-532.67699838,0.00013498,2]
[403167613,1769235518595,-300.0,0.00013498,2]
[403167614,1769235521271,-176.79782439,0.00013498,2]
[403167615,1769235523461,-268.1609877,0.00013498,2]
[403167616,1769235525729,-175.19705742,0.00013498,2]
[403167617,1769235531658,-221.80068755,0.00013498,2]
[403167618,1769235533845,-251.32815818,0.00013498,2]
[403167619,1769235535989,-229.37692669,0.00013498,2]
[403167620,1769235538149,-295.66994095,0.00013498,2]
[403167621,1769235541298,300.0,0.00013497,2]
[403167622,1769235542411,-205.96607681,0.00013498,2]
[403167623,1769235544715,-297.21630414,0.00013498,2]
[403167626,1769235551666,-182.45321182,0.00013498,2]
[403167627,1769235553060,190.41022385,0.00013425,2]
[403167628,1769235553099,151.79721788,0.00013425,2]
[403167629,1769235553531,297.21630414,0.00013497,2]
[403167630,1769235554762,-282.93022308,0.00013498,2]
[403167631,1769235558617,-323.15251754,0.00013498,2]
[403167632,1769235561899,-232.09640326,0.00013498,2]
[403167633,1769235564521,-280.39885499,0.00013498,2]
[403167634,1769235565169,485.71391894,0.00013497,2]
[403167635,1769235566577,-207.93275091,0.00013498,2]
[403167636,1769235568180,-249.48742691,0.00013498,2]
[403167637,1769235570480,739.57660658,0.00013445,2]
[403167638,1769235570504,1684.34590912,0.00013445,2]
[403167639,1769235571010,-300.0,0.00013498,2]
[403167640,1769235574513,-165.38809843,0.00013498,2]
[403167641,1769235576138,500.0,0.00013497,2]
[403167642,1769235576190,437.49778608,0.00013497,2]
[403167643,1769235577410,-155.24071074,0.00013498,2]
[403167644,1769235579616,-209.45575477,0.00013498,2]
[403167645,1769235582018,-171.63552027,0.00013498,2]
[403167646,1769235586881,-297.96694655,0.00013498,2]
[403167649,1769235590232,-280.0356392,0.00013498,2]
[403167650,1769235592094,-168.15643284,0.00013498,2]
[403167651,1769235592274,4315.8315,0.00013398,2]
[403167652,1769235593553,-237.64234053,0.00013498,2]
[403167653,1769235595734,-346.77395253,0.00013498,2]
[403167654,1769235597661,-200.22499774,0.00013498,2]
[403167655,1769235600411,-168.59545555,0.00013498,2]
[403167656,1769235601252,1200.0,0.00013497,2]
[403167657,1769235601671,500.0,0.00013497,2]
[403167658,1769235601768,214.87552534,0.00013497,2]
[403167659,1769235602488,-195.0,0.00013498,2]
[403167660,1769235606854,-461.77467345,0.00013498,2]
[403167661,1769235608920,-300.0,0.00013498,2]
[403167662,1769235610988,-177.41637602,0.00013498,2]
[403167663,1769235614080,150.0,0.00013425,2]
[403167664,1769235614304,150.0,0.00013425,2]
[403167665,1769235614349,-358.06244773,0.00013498,2]
[403167666,1769235617875,-286.74145146,0.00013498,2]
[403167667,1769235623202,-278.61511651,0.00013498,2]
[403167668,1769235625463,500.0,0.00013497,2]
[403167669,1769235625786,347.45927946,0.00013497,2]
[403167670,1769235625813,152.54072054,0.00013497,2]
[403167671,1769235626147,251.20751112,0.00013497,2]
[403167672,1769235627062,-244.33214218,0.00013498,2]
[403167673,1769235629667,1000.0,0.000133,2]
[403167674,1769235631641,-219.33823485,0.00013498,2]
[403167675,1769235634200,-199.77571834,0.00013498,2]
[403167676,1769235636333,-262.80801449,0.00013498,2]
[403167677,1769235636670,500.0,0.00013497,2]
[403167678,1769235636725,500.0,0.00013497,2]
[403167679,1769235636808,477.16542175,0.00013497,2]
[403167680,1769235638435,-188.41388948,0.00013498,2]
[403167681,1769235638966,2553.84548843,0.000134,3]
[403167682,1769235640020,3132.47993826,0.00013488,2]
[403167683,1769235640577,-217.12319244,0.00013498,2]
[403167684,1769235642183,-176.28860616,0.00013498,2]
[403167685,1769235646369,-417.16755992,0.00013498,2]
[403167686,1769235647926,-193.18732749,0.00013498,2]
[403167687,1769235648328,489.5744171,0.00013497,2]
[403167688,1769235650717,-199.09395867,0.00013498,2]
[403167689,1769235652244,-238.19873751,0.00013498,2]
[403167690,1769235656223,-209.51412181,0.00013498,2]
[403167691,1769235658935,-205.78210821,0.00013498,2]
[403167692,1769235661280,300.0,0.00013497,2]
[403167693,1769235662022,300.0,0.00013497,2]
[403167694,1769235663005,150.0,0.00013497,2]
[403167695,1769235663508,-551.22428166,0.00013498,2]
[403167696,1769235664288,500.0,0.00013497,2]
[403167697,1769235664635,500.0,0.00013497,2]
[403167698,1769235664945,189.20504065,0.00013497,2]
[403167699,1769235665632,-204.01024947,0.00013498,2]
[403167700,1769235667161,-263.01029106,0.00013498,2]
[403167701,1769235668712,-413.47485461,0.00013498,2]
[403167702,1769235670530,1557.83695058,0.00013445,2]
[403167703,1769235670555,5411.41222582,0.00013445,2]
[403167704,1769235671051,-458.39342186,0.00013498,2]
[403167705,1769235672540,-501.00782437,0.00013498,2]
[403167706,1769235673198,151.0,0.00013495,2]
[403167707,1769235674235,-182.57215667,0.00013498,2]
[403167708,1769235678573,-250.4054372,0.00013498,2]
[403167709,1769235681925,-381.65287247,0.00013498,2]
[403167710,1769235686264,-160.14991565,0.00013498,2]
[403167711,1769235688557,-214.79177468,0.00013498,2]
[403167712,1769235690114,-179.954532,0.00013498,2]
[403167713,1769235692205,3429.953,0.00013228,2]
[403167714,1769235692242,256.629,0.00013228,2]
[403167715,1769235692617,-178.70738696,0.00013498,2]
[403167716,1769235695234,-401.16699822,0.00013498,2]
[403167717,1769235697524,-346.98688801,0.00013498,2]
[403167718,1769235700311,-209.21893678,0.00013498,2]
[403167719,1769235702601,-183.85483595,0.00013498,2]
[403167720,1769235704728,-313.91034674,0.00013498,2]
[403167721,1769235707303,-280.40948795,0.00013498,2]
[403167722,1769235710059,-330.14659575,0.00013498,2]
[403167723,1769235711635,-208.58830649,0.00013498,2]
[403167724,1769235713403,-350.63134384,0.00013498,2]
[403167725,1769235715707,-390.66590947,0.00013498,2]
[403167726,1769235719274,-288.3268377,0.00013498,2]
[403167727,1769235721547,300.0,0.00013497,2]
[403167728,1769235722235,-308.68261763,0.00013498,2]
[403167729,1769235725962,-255.69688058,0.00013498,2]
[403167730,1769235727480,-236.90060527,0.00013498,2]
[403167731,1769235727617,174.61919141,0.00013498,2]
[403167732,1769235728905,-192.88371431,0.00013498,2]
[403167733,1769235732192,-500.0,0.00013498,2]
[403167734,1769235732530,-500.0,0.00013498,2]
[403167735,1769235733060,-500.0,0.00013498,2]
[403167736,1769235734555,-392.40814424,0.00013498,2]
[403167737,1769235735314,-107.59185576,0.00013498,2]
[403167738,1769235735343,-500.0,0.00013498,2]
[403167739,1769235735371,-500.0,0.00013498,2]
[403167740,1769235735706,-500.0,0.00013498,2]
[403167741,1769235736195,-500.0,0.00013498,2]
[403167742,1769235737296,-159.99371674,0.00013498,2]
[403167743,1769235738340,-340.00628326,0.00013498,2]
[403167744,1769235738374,-500.0,0.00013498,2]
[403167745,1769235738407,-500.0,0.00013498,2]
[403167746,1769235738550,-233.85692081,0.00013498,2]
[403167747,1769235738581,-10000.01,0.00013498,2]
[403167748,1769235740919,-454.1716,0.00013398,2]
[403167749,1769235740947,-250.0,0.00013498,2]
[403167750,1769235740974,-322.6107,0.00013498,2]
[403167751,1769235741330,-7946.4454,0.00013498,2]
[403167752,1769235742267,-10000.01,0.00013498,2]
[403167753,1769235748902,-250.0,0.00013498,2]
[403167754,1769235748944,-228.72712253,0.00013498,2]
[403167755,1769235748983,-721.12765535,0.00013498,2]
[403167756,1769235749013,-854.2589148,0.00013498,2]
[403167757,1769235749042,-151.0,0.00013498,2]
[403167758,1769235749072,-151.0,0.00013498,2]
[403167759,1769235749102,-151.0,0.00013498,2]
[403167760,1769235749132,-151.0,0.00013498,2]
[403167761,1769235749296,-4683.78261464,0.00013498,2]
[403167762,1769235750002,-151.0,0.00013498,2]
[403167763,1769235750032,-151.0,0.00013498,2]
[403167764,1769235750087,-9396.01,0.00013498,2]
[403167765,1769235750120,-10000.01,0.00013498,2]
[403167766,1769235750217,-10000.01,0.00013498,2]
[403167767,1769235753498,-151.0,0.00013498,2]
[403167768,1769235753828,-151.0,0.00013498,2]
[403167769,1769235753859,-151.0,0.00013498,2]
[403167770,1769235753888,-151.0,0.00013498,2]
[403167771,1769235753918,-151.0,0.00013498,2]
[403167772,1769235754200,-315.73649027,0.00013498,2]
[403167773,1769235756203,250.0,0.00013498,2]
[403167774,1769235756816,250.0,0.00013498,2]
[403167775,1769235757449,250.0,0.00013498,2]
[403167776,1769235757904,-203.14186998,0.00013498,2]
[403167777,1769235760564,-202.2191889,0.00013498,2]
[403167778,1769235760932,151.0,0.00013498,2]
[403167779,1769235761105,6786.16204535,0.00013,2]
[403167780,1769235763184,-211.16229621,0.00013498,2]
[403167781,1769235764979,802.84795465,0.00013498,2]
[403167782,1769235765003,1665.15204535,0.00013498,2]
[403167783,1769235766351,-151.63403555,0.00013498,2]
[403167784,1769235766422,500.0,0.00013498,2]
[403167785,1769235766631,500.0,0.00013498,2]
[403167786,1769235767229,500.0,0.00013498,2]
[403167787,1769235767835,500.0,0.00013498,2]
[403167788,1769235768325,-170.11123983,0.00013498,2]
[403167789,1769235768477,500.0,0.00013498,2]
[403167790,1769235768814,-7344.85795465,0.00013498,2]
[403167791,1769235768927,-10000.01,0.00013498,2]
[403167792,1769235769050,-10000.01,0.00013498,2]
[403167793,1769235769109,500.0,0.00013498,2]
[403167794,1769235769171,-9500.01,0.00013498,2]
[403167795,1769235769321,-10000.01,0.00013498,2]
[403167796,1769235769471,-10000.01,0.00013498,2]
[403167797,1769235769586,-10000.01,0.00013498,2]
[403167798,1769235769712,500.0,0.00013498,2]
[403167799,1769235769748,-9500.01,0.00013498,2]
[403167800,1769235770883,-256.54516795,0.00013498,2]
[403167801,1769235773811,-243.45483205,0.00013498,2]
[403167802,1769235773841,-86.77896518,0.00013498,2]
[403167803,1769235774922,-413.22103482,0.00013498,2]
[403167804,1769235774951,-500.0,0.00013498,2]
[403167805,1769235774980,-262.4243789,0.00013498,2]
[403167807,1769235775955,-303.83949465,0.00013498,2]
[403167808,1769235777444,-310.65375151,0.00013498,2]
[403167809,1769235779558,-209.40344106,0.00013498,2]
[403167810,1769235781346,300.0,0.00013497,2]
[403167811,1769235783539,1000.0,0.00013398,2]
[403167812,1769235784591,-154.97974583,0.00013498,2]
[403167813,1769235786145,-390.66590947,0.00013498,2]
[403167814,1769235788042,302.07,0.00012764,2]
[403167815,1769235788440,5790.0176,7.945e-05,2]
[403167816,1769235789842,-245.95516537,0.00013498,2]
[403167817,1769235792394,-195.0,0.00013498,2]
[403167818,1769235794445,-191.79568348,0.00013498,2]
[403167819,1769235795858,256.63157256,0.00013398,2]
[403167820,1769235795905,-373.67418504,0.00013398,2]
[403167821,1769235798196,-324.10999087,0.00013398,2]
[403167822,1769235801211,-435.03636161,0.00013397,2]
[403167823,1769235802752,-218.31023305,0.00013397,2]
[403167824,1769235805384,-353.65340534,0.00013397,2]
[403167825,1769235805405,-82.70555562,0.00013398,2]
[403167826,1769235807586,-524.03105866,0.00013398,2]
[403167827,1769235810170,-302.46509455,0.00013398,2]
[403167830,1769235813482,-179.11384868,0.00013398,2]
[403167831,1769235815021,-254.84613125,0.00013398,2]
[403167832,1769235817097,-290.92210688,0.00013398,2]
[403167833,1769235819251,-412.61568662,0.00013398,2]
[403167834,1769235823574,-2351.29082744,0.00013398,2]
[403167835,1769235823835,-10000.01,0.00013398,2]
[403167836,1769235823961,-10000.01,0.00013398,2]
[403167837,1769235824089,-1684.64335817,0.00013398,2]
[403167838,1769235824112,-6630.72328366,0.00013398,2]
[403167839,1769235824188,-2500.0,0.00013398,2]
[403167840,1769235824376,-387.92974064,0.00013498,2]
[403167841,1769235825901,-196.76014019,0.00013498,2]
[403167842,1769235829841,-225.73370639,0.00013498,2]
[403167843,1769235832777,-254.29924118,0.00013498,2]
[403167844,1769235837360,-304.33692209,0.00013498,2]
[403167845,1769235839198,-196.42290902,0.00013498,2]
[403167846,1769235840954,-151.67763465,0.00013498,2]
[403167847,1769235841686,300.0,0.00013497,2]
[403167848,1769235842289,300.0,0.00013497,2]
[403167849,1769235842341,150.0,0.00013497,2]
[403167850,1769235842421,-294.29083844,0.00013498,2]
[403167851,1769235845670,-187.07118978,0.00013498,2]
[403167852,1769235846094,461.26989002,0.00013497,2]
[403167853,1769235847772,-296.66199893,0.00013498,2]
[403167854,1769235849967,-301.08018653,0.00013498,2]
[403167855,1769235851533,-175.31436043,0.00013498,2]
[403167856,1769235854780,-283.09318801,0.00013498,2]
[403167857,1769235856834,-175.39869777,0.00013498,2]
[403167858,1769235859665,-616.5,0.00013498,2]
[403167859,1769235861034,500.0,0.00013497,2]
[403167860,1769235861073,500.0,0.00013497,2]
[403167861,1769235861111,500.0,0.00013497,2]
[403167862,1769235861152,500.0,0.00013497,2]
[403167863,1769235861195,500.0,0.00013497,2]
[403167864,1769235861234,500.0,0.00013497,2]
[403167865,1769235861822,500.0,0.00013497,2]
[403167866,1769235861865,288.74010998,0.00013497,2]
[403167867,1769235861890,211.25989002,0.00013497,2]
[403167868,1769235861927,500.0,0.00013497,2]
[403167869,1769235861963,500.0,0.00013497,2]
[403167870,1769235862001,546.980804,0.0001343,2]
[403167871,1769235862038,500.0,0.00013497,2]
[403167872,1769235862074,500.0,0.00013497,2]
[403167873,1769235862110,500.0,0.00013497,2]
[403167874,1769235862147,500.0,0.00013497,2]
[403167875,1769235862188,500.0,0.00013497,2]
[403167876,1769235862226,500.0,0.00013497,2]
[403167877,1769235862269,500.0,0.00013497,2]
[403167878,1769235862311,500.0,0.00013497,2]